fUST/lending_fUST_20240715
["ID","MTS","AMOUNT","RATE_DAILY","PERIOD"]
[332204935,1721033458410,-153.0,0.00026027,2]
[332204936,1721033458420,-153.0,0.00026027,2]
[332204937,1721033458429,-153.0,0.00026027,2]
[332204938,1721033458439,-153.0,0.00026027,2]
[332204939,1721033458449,-153.0,0.00026027,2]
[332204940,1721033458459,-153.0,0.00026027,2]
[332204941,1721033458468,-153.0,0.00026027,2]
[332204942,1721033458477,-153.0,0.00026027,2]
[332204943,1721033458487,-153.0,0.00026027,2]
[332204944,1721033458497,-306.0,0.00026027,2]
[332204945,1721033458507,-153.0,0.00026027,2]
[332204946,1721033458517,-293.5691494,0.00026027,2]
[332204947,1721033458527,-293.5691494,0.00026027,2]
[332204948,1721033458537,-206.3900376,0.00026027,2]
[332204949,1721033458547,-293.5691494,0.00026027,2]
[332204950,1721033458557,-293.5691494,0.00026027,2]
[332204951,1721033458567,-206.3900376,0.00026027,2]
[332204952,1721033458578,-293.5691494,0.00026027,2]
[332204953,1721033458588,-206.3900376,0.00026027,2]
[332204954,1721033458598,-293.5691494,0.00026027,2]
[332204955,1721033458609,-206.3900376,0.00026027,2]
[332204956,1721033458620,-206.3900376,0.00026027,2]
[332204957,1721033458629,-293.5691494,0.00026027,2]
[332204958,1721033458639,-293.5691494,0.00026027,2]
[332204959,1721033458649,-206.3900376,0.00026027,2]
[332204960,1721033458663,-206.3900376,0.00026027,2]
[332204961,1721033458672,-293.5691494,0.00026027,2]
[332204962,1721033458682,-293.5691494,0.00026027,2]
[332204963,1721033458691,-206.3900376,0.00026027,2]
[332204964,1721033458701,-206.3900376,0.00026027,2]
[332204965,1721033458710,-293.5691494,0.00026027,2]
[332204966,1721033458719,-293.5691494,0.00026027,2]
[332204967,1721033458729,-206.3900376,0.00026027,2]
[332204968,1721033458739,-293.5691494,0.00026027,2]
[332204969,1721033458749,-206.3900376,0.00026027,2]
[332204970,1721033458758,-293.5691494,0.00026027,2]
[332204971,1721033458769,-293.5691494,0.00026027,2]
[332204972,1721033458778,-293.5691494,0.00026027,2]
[332204973,1721033458788,-600.0,0.00026045,2]
[332204974,1721033458797,-152.66982668,0.00026059,2]
[332204975,1721033458807,-153.0,0.00026082,2]
[332204976,1721033458817,-150.18278731,0.00026088,2]
[332204977,1721033458827,-153.0,0.0002611,2]
[332204978,1721033458836,-150.18278731,0.00026131,2]
[332204979,1721033458846,-155.0,0.0002616,10]
[332204980,1721033458858,-399.96117285,0.00026196,2]
[332204981,1721033458867,-815.5237345,0.00026203,2]
[332204982,1721033458877,-167.34932711,0.00026234,2]
[332204983,1721033458887,-153.0,0.00026247,2]
[332204984,1721033458897,-153.0,0.00026247,2]
[332204985,1721033458906,-153.0,0.00026247,2]
[332204986,1721033458915,-153.0,0.00026247,2]
[332204987,1721033458926,-153.0,0.00026247,2]
[332204988,1721033459013,-153.0,0.00026247,2]
[332204989,1721033459024,-153.0,0.00026247,2]
[332204990,1721033459033,-153.0,0.00026247,2]
[332204991,1721033459042,-152.66982668,0.00026265,2]
[332204992,1721033459052,-154.59445059,0.00026266,2]
[332204993,1721033459061,-150.18278731,0.00026276,2]
[332204994,1721033459071,-425.151,0.0002628,2]
[332204995,1721033459081,-3200.0,0.0002628,2]
[332204996,1721033459090,-175.511413,0.0002628,7]
[332204997,1721033459102,-175.511413,0.0002628,7]
[332204998,1721033459112,-815.5237345,0.00026285,2]
[332204999,1721033459122,-165.191516,0.000263,2]
[332205000,1721033459131,-165.191516,0.000263,2]
[332205001,1721033459143,-413.556163,0.000263,7]
[332205002,1721033459152,-413.556163,0.000263,7]
[332205003,1721033459161,-165.977123,0.000263,7]
[332205004,1721033459171,-165.977123,0.000263,7]
[332205005,1721033459182,-242.981211,0.000263,7]
[332205006,1721033459192,-242.981211,0.000263,7]
[332205007,1721033459204,-1000.0,0.000263,7]
[332205008,1721033459214,-1000.0,0.000263,7]
[332205009,1721033459223,-1000.0,0.000263,7]
[332205010,1721033459233,-1000.0,0.000263,7]
[332205011,1721033459242,-1000.0,0.000263,7]
[332205012,1721033459251,-1000.0,0.000263,7]
[332205013,1721033459260,-1000.0,0.000263,7]
[332205014,1721033459270,-1000.0,0.000263,7]
[332205015,1721033459279,-1000.0,0.000263,7]
[332205016,1721033459288,-1000.0,0.000263,7]
[332205017,1721033459297,-1000.0,0.000263,7]
[332205018,1721033459307,-1000.0,0.000263,7]
[332205019,1721033459317,-1000.0,0.000263,7]
[332205020,1721033459327,-1000.0,0.000263,7]
[332205021,1721033459336,-1000.0,0.000263,7]
[332205022,1721033459346,-1000.0,0.000263,7]
[332205023,1721033459358,-1000.0,0.000263,7]
[332205024,1721033459367,-1000.0,0.000263,7]
[332205025,1721033459377,-1000.0,0.000263,7]
[332205026,1721033459386,-1000.0,0.000263,7]
[332205027,1721033459395,-1000.0,0.000263,7]
[332205028,1721033459405,-1000.0,0.000263,7]
[332205029,1721033459414,-1000.0,0.000263,7]
[332205030,1721033459424,-1000.0,0.000263,7]
[332205031,1721033459433,-1000.0,0.000263,7]
[332205032,1721033459443,-1000.0,0.000263,7]
[332205033,1721033459452,-1000.0,0.000263,7]
[332205034,1721033459462,-1000.0,0.000263,7]
[332205035,1721033459472,-165.088209,0.000263,7]
[332205036,1721033459481,-1000.0,0.000263,7]
[332205037,1721033459492,-1000.0,0.000263,7]
[332205038,1721033459501,-1000.0,0.000263,7]
[332205039,1721033459510,-1000.0,0.000263,7]
[332205040,1721033459520,-1000.0,0.000263,7]
[332205041,1721033459529,-1000.0,0.000263,7]
[332205042,1721033459539,-1000.0,0.000263,7]
[332205043,1721033459549,-1000.0,0.000263,7]
[332205044,1721033459558,-1000.0,0.000263,7]
[332205045,1721033459567,-1000.0,0.000263,7]
[332205046,1721033459576,-1000.0,0.000263,7]
[332205047,1721033459585,-1000.0,0.000263,7]
[332205048,1721033459595,-165.088209,0.000263,7]
[332205049,1721033459608,-1000.0,0.000263,7]
[332205050,1721033459618,-1000.0,0.000263,7]
[332205051,1721033459628,-1000.0,0.000263,7]
[332205052,1721033459639,-1000.0,0.000263,7]
[332205053,1721033459650,-1000.0,0.000263,7]
[332205054,1721033459664,-1000.0,0.000263,7]
[332205055,1721033459674,-1000.0,0.000263,7]
[332205056,1721033459683,-1000.0,0.000263,7]
[332205057,1721033459694,-1000.0,0.000263,7]
[332205058,1721033459703,-1000.0,0.000263,7]
[332205059,1721033459713,-1000.0,0.000263,7]
[332205060,1721033459723,-1000.0,0.000263,7]
[332205061,1721033459734,-1000.0,0.000263,7]
[332205062,1721033459743,-1000.0,0.000263,7]
[332205063,1721033459752,-1000.0,0.000263,7]
[332205064,1721033459762,-1000.0,0.000263,7]
[332205065,1721033459771,-1000.0,0.000263,7]
[332205066,1721033459780,-1000.0,0.000263,7]
[332205067,1721033459790,-1000.0,0.000263,7]
[332205068,1721033459799,-1000.0,0.000263,7]
[332205069,1721033459809,-1000.0,0.000263,7]
[332205070,1721033459818,-1000.0,0.000263,7]
[332205071,1721033459828,-1000.0,0.000263,7]
[332205072,1721033459837,-808.460476,0.000263,7]
[332205073,1721033459847,-152.82118,0.000263,7]
[332205074,1721033459860,-152.82118,0.000263,7]
[332205075,1721033459869,-151.0,0.000263,7]
[332205076,1721033459879,-299.603066,0.000263,7]
[332205077,1721033459888,-299.603066,0.000263,7]
[332205078,1721033459897,-151.0,0.000263,7]
[332205079,1721033459908,-811.866382,0.000263,2]
[332205080,1721033459917,-151.0,0.000263,7]
[332205081,1721033459926,-811.866382,0.000263,2]
[332205082,1721033459936,-151.0,0.000263,7]
[332205083,1721033459945,-326.779574,0.000263,7]
[332205084,1721033459956,-326.779574,0.000263,7]
[332205085,1721033459965,-442.516801,0.000263,7]
[332205086,1721033459974,-442.516801,0.000263,7]
[332205087,1721033459984,-1061.766511,0.000263,7]
[332205088,1721033459993,-1061.766511,0.000263,7]
[332205089,1721033460002,-457.989968,0.000263,7]
[332205090,1721033460012,-457.989968,0.000263,7]
[332205091,1721033460022,-151.0,0.000263,7]
[332205092,1721033460033,-273.051489,0.000263,7]
[332205093,1721033460042,-273.051489,0.000263,7]
[332205094,1721033460052,-500.0,0.00026301,2]
[332205095,1721033460061,-500.0,0.00026301,2]
[332205096,1721033460071,-500.0,0.00026301,2]
[332205097,1721033460081,-708.24,0.00026301,4]
[332205098,1721033460091,-500.0,0.00026301,2]
[332205099,1721033460103,-500.0,0.00026301,2]
[332205100,1721033460113,-204.39178416,0.00026301,2]
[332205101,1721033460122,-500.0,0.00026301,2]
[332205102,1721033460132,-500.0,0.00026301,2]
[332205103,1721033460141,-378.0299681,0.00026301,2]
[332205104,1721033460151,-500.0,0.00026301,2]
[332205105,1721033460160,-501.98,0.00026301,2]
[332205106,1721033460169,-500.0,0.00026301,2]
[332205107,1721033460180,-500.0,0.00026301,2]
[332205108,1721033460190,-500.0,0.00026301,2]
[332205109,1721033460199,-702.26,0.00026301,2]
[332205110,1721033460208,-650.16,0.00026301,2]
[332205111,1721033460218,-715.41,0.00026301,2]
[332205112,1721033460228,-621.7,0.00026301,2]
[332205113,1721033460238,-500.0,0.00026301,2]
[332205114,1721033460248,-1392.42,0.00026301,2]
[332205115,1721033460257,-500.0,0.00026301,2]
[332205116,1721033460267,-500.0,0.00026301,2]
[332205117,1721033460276,-791.68,0.00026301,2]
[332205118,1721033460285,-151.0,0.00026301,7]
[332205119,1721033460294,-500.0,0.00026301,2]
[332205120,1721033460304,-500.0,0.00026301,2]
[332205121,1721033460314,-847.82,0.00026301,2]
[332205122,1721033460323,-416.082217,0.00026301,2]
[332205123,1721033460334,-500.0,0.00026301,2]
[332205124,1721033460344,-500.0,0.00026301,2]
[332205125,1721033460356,-1832.53,0.00026301,2]
[332205126,1721033460365,-194.23235993,0.00026301,2]
[332205127,1721033460374,-2808.39,0.00026301,2]
[332205128,1721033460383,-845.85,0.00026301,2]
[332205129,1721033460393,-500.0,0.00026301,2]
[332205130,1721033460402,-1426.61,0.00026301,2]
[332205131,1721033460412,-2773.2,0.00026301,2]
[332205132,1721033460421,-500.0,0.00026301,2]
[332205133,1721033460430,-500.0,0.00026301,2]
[332205134,1721033460440,-500.0,0.00026301,2]
[332205135,1721033460450,-500.0,0.00026301,2]
[332205136,1721033460458,-500.0,0.00026301,2]
[332205137,1721033460468,-172.26287292,0.00026301,2]
[332205138,1721033460477,-500.0,0.00026301,2]
[332205139,1721033460487,-500.0,0.00026301,2]
[332205140,1721033460496,-500.0,0.00026301,2]
[332205141,1721033460506,-500.0,0.00026301,2]
[332205142,1721033460515,-500.0,0.00026301,2]
[332205143,1721033460525,-500.0,0.00026301,2]
[332205144,1721033460535,-500.0,0.00026301,2]
[332205145,1721033460544,-500.0,0.00026301,2]
[332205146,1721033460554,-500.0,0.00026301,2]
[332205147,1721033460562,-841.56,0.00026301,2]
[332205148,1721033460571,-500.0,0.00026301,2]
[332205149,1721033460580,-500.0,0.00026301,2]
[332205150,1721033460589,-500.0,0.00026301,2]
[332205151,1721033460599,-3850.77,0.00026301,2]
[332205152,1721033460612,-311.41885475,0.00026301,2]
[332205153,1721033460621,-500.0,0.00026301,2]
[332205154,1721033460630,-500.0,0.00026301,2]
[332205155,1721033460640,-500.0,0.00026301,2]
[332205156,1721033460730,-500.0,0.00026301,2]
[332205157,1721033460740,-514.00914692,0.00026301,2]
[332205158,1721033460750,-500.0,0.00026301,2]
[332205159,1721033460759,-500.0,0.00026301,2]
[332205160,1721033460769,-500.0,0.00026301,2]
[332205161,1721033460778,-664.91,0.00026301,2]
[332205162,1721033460787,-1626.76,0.00026301,2]
[332205163,1721033460796,-500.0,0.00026301,2]
[332205164,1721033460806,-500.0,0.00026301,2]
[332205165,1721033460815,-765.72,0.00026301,2]
[332205166,1721033460824,-609.72,0.00026301,2]
[332205167,1721033460834,-500.0,0.00026301,2]
[332205168,1721033460843,-500.0,0.00026301,2]
[332205169,1721033460855,-21833.04,0.00026301,2]
[332205170,1721033460864,-500.0,0.00026301,2]
[332205171,1721033460873,-500.0,0.00026301,2]
[332205172,1721033460883,-500.0,0.00026301,2]
[332205173,1721033460892,-2439.81,0.00026301,2]
[332205174,1721033460901,-510.98,0.00026301,2]
[332205175,1721033460911,-500.0,0.00026301,2]
[332205176,1721033460921,-500.0,0.00026301,2]
[332205177,1721033460930,-500.0,0.00026301,2]
[332205178,1721033460940,-500.0,0.00026301,2]
[332205179,1721033460950,-500.0,0.00026301,2]
[332205180,1721033460959,-500.0,0.00026301,2]
[332205181,1721033460968,-4417.13,0.00026301,2]
[332205182,1721033460977,-500.0,0.00026301,2]
[332205183,1721033460986,-1034.76,0.00026301,2]
[332205184,1721033460995,-500.0,0.00026301,2]
[332205185,1721033461005,-500.0,0.00026301,2]
[332205186,1721033461014,-610.34182021,0.00026301,2]
[332205187,1721033461023,-151.0,0.00026301,7]
[332205188,1721033461033,-780.19,0.00026301,2]
[332205189,1721033461042,-500.0,0.00026301,2]
[332205190,1721033461051,-4687.31,0.00026301,2]
[332205191,1721033461061,-1264.1,0.00026301,2]
[332205192,1721033461071,-500.0,0.00026301,2]
[332205193,1721033461080,-1390.09,0.00026301,2]
[332205194,1721033461090,-500.0,0.00026301,2]
[332205195,1721033461100,-500.0,0.00026301,2]
[332205196,1721033461113,-561.78,0.00026301,2]
[332205197,1721033461123,-500.0,0.00026301,2]
[332205198,1721033461133,-500.0,0.00026301,2]
[332205199,1721033461143,-273.051489,0.00026301,7]
[332205200,1721033461152,-500.0,0.00026301,2]
[332205201,1721033461162,-500.0,0.00026301,2]
[332205202,1721033461171,-500.0,0.00026301,2]
[332205203,1721033461182,-273.051496,0.00026301,7]
[332205204,1721033461191,-649.55834355,0.00026301,2]
[332205205,1721033461200,-2212.25,0.00026301,2]
[332205206,1721033461209,-175.511413,0.00026301,7]
[332205207,1721033461218,-500.0,0.00026301,2]
[332205208,1721033461228,-500.0,0.00026301,2]
[332205209,1721033461237,-175.511419,0.00026301,7]
[332205210,1721033461246,-634.9,0.00026301,2]
[332205211,1721033461256,-475.64,0.00026301,2]
[332205212,1721033461265,-500.0,0.00026301,2]
[332205213,1721033461274,-500.0,0.00026301,2]
[332205214,1721033461284,-927.94601428,0.00026313,2]
[332205215,1721033461293,-600.0,0.00026313,2]
[332205216,1721033461302,-927.94601428,0.00026327,2]
[332205217,1721033461311,-927.94601428,0.00026333,2]
[332205218,1721033461321,-153.0,0.00026356,2]
[332205219,1721033461330,-153.0,0.00026356,2]
[332205220,1721033461338,-153.0,0.00026356,2]
[332205221,1721033461348,-153.0,0.00026356,2]
[332205222,1721033461363,-153.0,0.00026356,2]
[332205223,1721033461372,-153.0,0.00026356,2]
[332205224,1721033461381,-153.0,0.00026356,2]
[332205225,1721033461390,-153.93810722,0.00026383,2]
[332205226,1721033461399,-153.0,0.00026384,2]
[332205227,1721033461408,-153.0,0.00026384,2]
[332205228,1721033461417,-153.0,0.00026384,2]
[332205229,1721033461427,-153.0,0.00026384,2]
[332205230,1721033461436,-153.0,0.00026384,2]
[332205231,1721033461446,-215.5,0.00026415,2]
[332205232,1721033461456,-151.0,0.00026415,2]
[332205233,1721033461465,-152.66982668,0.00026436,2]
[332205234,1721033461474,-153.0,0.00026438,2]
[332205235,1721033461483,-153.0,0.00026438,2]
[332205236,1721033461493,-153.0,0.00026438,2]
[332205237,1721033461502,-153.0,0.00026438,2]
[332205238,1721033461511,-153.0,0.00026438,2]
[332205239,1721033461520,-156.0,0.0002646,2]
[332205240,1721033461529,-3000.0,0.000265,2]
[332205241,1721033461539,-3000.0,0.0002651,2]
[332205242,1721033461548,-3000.0,0.0002652,2]
[332205243,1721033461558,-153.0,0.00026521,2]
[332205244,1721033461567,-153.0,0.00026521,2]
[332205245,1721033461575,-153.0,0.00026521,2]
[332205246,1721033461584,-153.0,0.00026521,2]
[332205247,1721033461593,-153.0,0.00026521,2]
[332205248,1721033461604,-153.0,0.00026521,2]
[332205249,1721033461613,-153.0,0.00026521,2]
[332205250,1721033461622,-153.0,0.00026521,2]
[332205251,1721033461632,-153.0,0.00026521,2]
[332205252,1721033461642,-153.0,0.00026521,2]
[332205253,1721033461652,-153.0,0.00026521,2]
[332205254,1721033461665,-153.0,0.00026521,2]
[332205255,1721033461674,-153.0,0.00026521,2]
[332205256,1721033461683,-153.0,0.00026521,2]
[332205257,1721033461695,-153.0,0.00026521,2]
[332205258,1721033461704,-153.0,0.00026521,2]
[332205259,1721033461714,-153.0,0.00026521,2]
[332205260,1721033461723,-153.0,0.00026521,2]
[332205261,1721033461733,-153.0,0.00026521,2]
[332205262,1721033461742,-153.0,0.00026521,2]
[332205263,1721033461753,-153.0,0.00026521,2]
[332205264,1721033461762,-153.0,0.00026521,2]
[332205265,1721033461771,-153.0,0.00026521,2]
[332205266,1721033461780,-153.0,0.00026521,2]
[332205267,1721033461789,-153.0,0.00026521,2]
[332205268,1721033461798,-153.0,0.00026521,2]
[332205269,1721033461808,-153.0,0.00026521,2]
[332205270,1721033461818,-153.0,0.00026521,2]
[332205271,1721033461828,-153.0,0.00026521,2]
[332205272,1721033461838,-3000.0,0.0002653,2]
[332205273,1721033461848,-326.779574,0.0002653,7]
[332205274,1721033461860,-326.779574,0.0002653,7]
[332205275,1721033461870,-442.516801,0.0002653,7]
[332205276,1721033461879,-442.516801,0.0002653,7]
[332205277,1721033461888,-1061.766511,0.0002653,7]
[332205278,1721033461898,-1061.766511,0.0002653,7]
[332205279,1721033461908,-457.989968,0.0002653,7]
[332205280,1721033461918,-457.989968,0.0002653,7]
[332205281,1721033461928,-3000.0,0.0002654,2]
[332205282,1721033461939,-152.66982668,0.00026544,2]
[332205283,1721033461949,-152.66982668,0.00026548,2]
[332205284,1721033461958,-3000.0,0.0002655,2]
[332205285,1721033461967,-3000.0,0.0002656,2]
[332205286,1721033461977,-3000.0,0.0002657,2]
[332205287,1721033461986,-500.0,0.00026575,2]
[332205288,1721033461995,-292.11014378,0.00026575,2]
[332205289,1721033462005,-514.65275339,0.00026575,2]
[332205290,1721033462014,-708.24,0.00026575,4]
[332205291,1721033462024,-217.54059777,0.00026575,2]
[332205292,1721033462033,-500.0,0.00026575,2]
[332205293,1721033462042,-636.90766553,0.00026575,2]
[332205294,1721033462051,-500.0,0.00026575,2]
[332205295,1721033462060,-165.191516,0.00026575,2]
[332205296,1721033462069,-165.191516,0.00026575,2]
[332205297,1721033462078,-500.0,0.00026575,2]
[332205298,1721033462087,-413.556163,0.00026575,7]
[332205299,1721033462096,-413.556163,0.00026575,7]
[332205300,1721033462107,-501.98,0.00026575,2]
[332205301,1721033462118,-165.977123,0.00026575,7]
[332205302,1721033462127,-165.977123,0.00026575,7]
[332205303,1721033462137,-415.86513126,0.00026575,2]
[332205304,1721033462146,-500.0,0.00026575,2]
[332205305,1721033462155,-500.0,0.00026575,2]
[332205306,1721033462167,-702.26,0.00026575,2]
[332205307,1721033462176,-242.981211,0.00026575,7]
[332205308,1721033462185,-650.16,0.00026575,2]
[332205309,1721033462193,-242.981211,0.00026575,7]
[332205310,1721033462273,-715.41,0.00026575,2]
[332205311,1721033462282,-621.7,0.00026575,2]
[332205312,1721033462292,-500.0,0.00026575,2]
[332205313,1721033462302,-165.088209,0.00026575,7]
[332205314,1721033462311,-165.088209,0.00026575,7]
[332205315,1721033462321,-1392.42,0.00026575,2]
[332205316,1721033462330,-500.0,0.00026575,2]
[332205317,1721033462340,-500.0,0.00026575,2]
[332205318,1721033462349,-791.68,0.00026575,2]
[332205319,1721033462362,-152.82118,0.00026575,7]
[332205320,1721033462372,-152.82118,0.00026575,7]
[332205321,1721033462381,-500.0,0.00026575,2]
[332205322,1721033462391,-151.0,0.00026575,7]
[332205323,1721033462400,-500.0,0.00026575,2]
[332205324,1721033462410,-847.82,0.00026575,2]
[332205325,1721033462420,-299.603066,0.00026575,7]
[332205326,1721033462431,-299.603066,0.00026575,7]
[332205327,1721033462441,-500.0,0.00026575,2]
[332205328,1721033462451,-500.0,0.00026575,2]
[332205329,1721033462461,-1832.53,0.00026575,2]
[332205330,1721033462470,-151.0,0.00026575,7]
[332205331,1721033462479,-811.866382,0.00026575,2]
[332205332,1721033462490,-151.0,0.00026575,7]
[332205333,1721033462499,-811.866382,0.00026575,2]
[332205334,1721033462509,-2808.39,0.00026575,2]
[332205335,1721033462518,-845.85,0.00026575,2]
[332205336,1721033462527,-366.78957763,0.00026575,2]
[332205337,1721033462537,-1426.61,0.00026575,2]
[332205338,1721033462547,-2773.2,0.00026575,2]
[332205339,1721033462557,-500.0,0.00026575,2]
[332205340,1721033462567,-500.0,0.00026575,2]
[332205341,1721033462576,-534.02865996,0.00026575,2]
[332205342,1721033462586,-404.93395029,0.00026575,2]
[332205343,1721033462597,-500.0,0.00026575,2]
[332205344,1721033462609,-500.0,0.00026575,2]
[332205345,1721033462619,-225.728948,0.00026575,7]
[332205346,1721033462629,-495.86811673,0.00026575,2]
[332205347,1721033462640,-500.0,0.00026575,2]
[332205348,1721033462652,-500.0,0.00026575,2]
[332205349,1721033462665,-500.0,0.00026575,2]
[332205350,1721033462675,-500.0,0.00026575,2]
[332205351,1721033462683,-500.0,0.00026575,2]
[332205352,1721033462694,-500.0,0.00026575,2]
[332205353,1721033462703,-500.0,0.00026575,2]
[332205354,1721033462712,-841.56,0.00026575,2]
[332205355,1721033462722,-500.0,0.00026575,2]
[332205356,1721033462734,-500.0,0.00026575,2]
[332205357,1721033462745,-500.0,0.00026575,2]
[332205358,1721033462755,-3850.77,0.00026575,2]
[332205359,1721033462764,-500.0,0.00026575,2]
[332205360,1721033462773,-500.0,0.00026575,2]
[332205361,1721033462784,-500.0,0.00026575,2]
[332205362,1721033462793,-500.0,0.00026575,2]
[332205363,1721033462803,-500.0,0.00026575,2]
[332205364,1721033462814,-500.0,0.00026575,2]
[332205365,1721033462825,-664.91,0.00026575,2]
[332205366,1721033462835,-1626.76,0.00026575,2]
[332205367,1721033462844,-500.0,0.00026575,2]
[332205368,1721033462858,-500.0,0.00026575,2]
[332205369,1721033462869,-765.72,0.00026575,2]
[332205370,1721033462878,-609.72,0.00026575,2]
[332205371,1721033462887,-500.0,0.00026575,2]
[332205372,1721033462896,-500.0,0.00026575,2]
[332205373,1721033462906,-21833.04,0.00026575,2]
[332205374,1721033462916,-500.0,0.00026575,2]
[332205375,1721033462927,-500.0,0.00026575,2]
[332205376,1721033462937,-500.0,0.00026575,2]
[332205377,1721033462947,-2439.81,0.00026575,2]
[332205378,1721033462958,-510.98,0.00026575,2]
[332205379,1721033462967,-500.0,0.00026575,2]
[332205380,1721033462979,-500.0,0.00026575,2]
[332205381,1721033462989,-500.0,0.00026575,2]
[332205382,1721033462999,-500.0,0.00026575,2]
[332205383,1721033463009,-500.0,0.00026575,2]
[332205384,1721033463020,-561.9509239,0.00026575,2]
[332205385,1721033463030,-4417.13,0.00026575,2]
[332205386,1721033463040,-500.0,0.00026575,2]
[332205387,1721033463051,-1034.76,0.00026575,2]
[332205388,1721033463061,-500.0,0.00026575,2]
[332205389,1721033463071,-167.15,0.00026575,2]
[332205390,1721033463082,-780.19,0.00026575,2]
[332205391,1721033463091,-175.26545851,0.00026575,2]
[332205392,1721033463100,-4687.31,0.00026575,2]
[332205393,1721033463112,-1264.1,0.00026575,2]
[332205394,1721033463122,-500.0,0.00026575,2]
[332205395,1721033463132,-1390.09,0.00026575,2]
[332205396,1721033463141,-500.0,0.00026575,2]
[332205397,1721033463151,-500.0,0.00026575,2]
[332205398,1721033463161,-561.78,0.00026575,2]
[332205399,1721033463170,-500.0,0.00026575,2]
[332205400,1721033463180,-500.0,0.00026575,2]
[332205401,1721033463189,-500.0,0.00026575,2]
[332205402,1721033463198,-500.0,0.00026575,2]
[332205403,1721033463208,-500.0,0.00026575,2]
[332205404,1721033463217,-2212.25,0.00026575,2]
[332205405,1721033463226,-500.0,0.00026575,2]
[332205406,1721033463236,-500.0,0.00026575,2]
[332205407,1721033463245,-500.0,0.00026575,2]
[332205408,1721033463254,-3000.0,0.0002658,2]
[332205409,1721033463264,-152.66982668,0.0002658,2]
[332205410,1721033463274,-961.9443635,0.00026582,2]
[332205411,1721033463283,-3000.0,0.0002659,2]
[332205412,1721033463292,-2060.82155056,0.000266,2]
[332205413,1721033463302,-3000.0,0.000266,2]
[332205414,1721033463311,-5071.12377993,0.0002661,30]
[332205415,1721033463320,-3000.0,0.0002661,2]
[332205416,1721033463329,-3000.0,0.0002662,2]
[332205417,1721033463338,-3000.0,0.0002663,2]
[332205418,1721033463347,-3000.0,0.0002664,2]
[332205419,1721033463360,-150.18278731,0.00026641,2]
[332205420,1721033463369,-3000.0,0.0002665,2]
[332205421,1721033463378,-927.94601428,0.00026654,2]
[332205422,1721033463387,-3000.0,0.0002666,2]
[332205423,1721033463397,-153.93810722,0.00026667,2]
[332205424,1721033463407,-202.65467624,0.00026669,2]
[332205425,1721033463416,-3000.0,0.0002667,2]
[332205426,1721033463425,-3000.0,0.0002668,2]
[332205427,1721033463435,-3000.0,0.0002669,2]
[332205428,1721033463445,-399.96117285,0.00026699,2]
[332205429,1721033463454,-3000.0,0.000267,2]
[332205430,1721033463464,-180.0,0.000267,2]
[332205431,1721033463473,-3000.0,0.0002671,2]
[332205432,1721033463482,-3000.0,0.0002672,2]
[332205433,1721033463492,-3000.0,0.0002673,2]
[332205434,1721033463502,-326.779574,0.0002673,7]